fUSD/lending_fUSD_20250606
["ID","MTS","AMOUNT","RATE_DAILY","PERIOD"]
[364807957,1749246684441,-480.0,0.00028876,5]
[364807958,1749246684451,-1173.51,0.00028876,5]
[364807959,1749246684460,-1217.86,0.00028876,5]
[364807960,1749246684470,-480.0,0.00028876,5]
[364807961,1749246684480,-661.15,0.00028876,5]
[364807962,1749246684490,-2825.65,0.00028876,5]
[364807963,1749246684499,-782.79,0.00028876,5]
[364807964,1749246684508,-480.0,0.00028876,5]
[364807965,1749246684518,-866.52,0.00028876,5]
[364807966,1749246684528,-978.55,0.00028876,5]
[364807967,1749246684539,-480.0,0.00028876,5]
[364807968,1749246684548,-480.0,0.00028876,5]
[364807969,1749246684558,-480.0,0.00028876,5]
[364807970,1749246684568,-3108.49,0.00028876,5]
[364807971,1749246684578,-480.0,0.00028876,5]
[364807972,1749246684588,-1300.77,0.00028876,5]
[364807973,1749246684598,-480.0,0.00028876,5]
[364807974,1749246684608,-2680.22,0.00028876,5]
[364807975,1749246684620,-1437.98,0.00028876,5]
[364807976,1749246684629,-519.51,0.00028876,5]
[364807977,1749246684638,-509.64,0.00028876,5]
[364807978,1749246684648,-480.0,0.00028876,5]
[364807979,1749246684659,-9520.94,0.00028876,5]
[364807980,1749246684669,-480.0,0.00028876,5]
[364807981,1749246684679,-480.0,0.00028876,5]
[364807982,1749246684688,-480.0,0.00028876,5]
[364807983,1749246684698,-1288.3,0.00028876,5]
[364807984,1749246684708,-1532.11,0.00028876,5]
[364807985,1749246684717,-539.78,0.00028876,5]
[364807986,1749246684727,-1411.14,0.00028876,5]
[364807987,1749246684736,-1226.65,0.00028876,5]
[364807988,1749246684746,-11376.28,0.00028876,5]
[364807989,1749246684755,-480.0,0.00028876,5]
[364807990,1749246684765,-745.67,0.00028876,5]
[364807991,1749246684774,-480.0,0.00028876,5]
[364807992,1749246684784,-1096.92,0.00028876,5]
[364807993,1749246684793,-480.0,0.00028876,5]
[364807994,1749246684803,-480.0,0.00028876,5]
[364807995,1749246684813,-1261.97,0.00028876,5]
[364807996,1749246684823,-480.0,0.00028876,5]
[364807997,1749246684832,-1625.92,0.00028876,5]
[364807998,1749246684842,-480.0,0.00028876,5]
[364807999,1749246684852,-550.84,0.00028876,5]
[364808000,1749246684862,-483.94,0.00028876,5]
[364808001,1749246684871,-1473.067164,0.00028876,7]
[364808002,1749246684881,-5339.23,0.00028876,5]
[364808003,1749246684890,-1473.067164,0.00028876,7]
[364808004,1749246684900,-1348.87,0.00028876,5]
[364808005,1749246684909,-828.64,0.00028876,5]
[364808006,1749246684919,-340.484986,0.00028876,5]
[364808007,1749246684928,-480.0,0.00028876,5]
[364808008,1749246684938,-489.87,0.00028876,5]
[364808009,1749246684947,-210.435843,0.00028876,7]
[364808010,1749246684958,-1697.96,0.00028876,5]
[364808011,1749246684967,-1051.18,0.00028876,5]
[364808012,1749246684977,-1189.86,0.00028876,5]
[364808013,1749246684987,-480.0,0.00028876,2]
[364808014,1749246684996,-633.51,0.00028876,5]
[364808015,1749246685006,-480.0,0.00028876,5]
[364808016,1749246685015,-210.435843,0.00028876,7]
[364808017,1749246685025,-480.0,0.00028876,5]
[364808018,1749246685034,-480.0,0.00028876,5]
[364808019,1749246685043,-480.0,0.00028876,2]
[364808020,1749246685053,-551.67,0.00028876,5]
[364808021,1749246685063,-2333.6,0.00028876,5]
[364808022,1749246685073,-765.3,0.00028876,5]
[364808023,1749246685082,-2754.5,0.00028876,5]
[364808024,1749246685091,-1846.24,0.00028876,5]
[364808025,1749246685101,-1116.679016,0.00028876,7]
[364808026,1749246685111,-1431.03,0.00028876,5]
[364808027,1749246685120,-1044.17,0.00028876,5]
[364808028,1749246685130,-1116.679016,0.00028876,7]
[364808029,1749246685139,-480.0,0.00028876,5]
[364808030,1749246685148,-317.43770393,0.00028884,7]
[364808031,1749246685157,-248.60757735,0.00028884,7]
[364808032,1749246685167,-150.0,0.00028889,7]
[364808033,1749246685176,-9405.7727893,0.00028893,2]
[364808034,1749246685186,-400.0,0.000289,10]
[364808035,1749246685195,-150.0,0.00028902,7]
[364808036,1749246685204,-284.41901234,0.00028903,2]
[364808037,1749246685214,-958.0,0.00028903,5]
[364808038,1749246685223,-689.0,0.00028903,5]
[364808039,1749246685232,-500.0,0.00028903,5]
[364808040,1749246685242,-161.63440604,0.00028904,2]
[364808041,1749246685251,-473.0,0.00028907,5]
[364808042,1749246685260,-150.0,0.0002891,7]
[364808043,1749246685270,-150.0,0.00028911,7]
[364808044,1749246685279,-317.43770393,0.00028916,7]
[364808045,1749246685288,-248.60757735,0.00028916,7]
[364808046,1749246685298,-150.0,0.00028927,7]
[364808047,1749246685308,-958.0,0.0002893,5]
[364808048,1749246685317,-689.0,0.0002893,5]
[364808049,1749246685328,-357.03710801,0.0002893,5]
[364808050,1749246685337,-150.0,0.00028941,7]
[364808051,1749246685346,-317.43770393,0.00028948,7]
[364808052,1749246685356,-248.60757735,0.00028948,7]
[364808053,1749246685365,-958.0,0.00028958,5]
[364808054,1749246685375,-689.0,0.00028958,5]
[364808055,1749246685385,-150.0,0.00028964,7]
[364808056,1749246685394,-150.0,0.00028968,7]
[364808057,1749246685404,-500.0,0.0002897,2]
[364808058,1749246685413,-1000.0,0.0002897,2]
[364808059,1749246685423,-150.0,0.00028973,2]
[364808060,1749246685433,-1000.0,0.00028973,2]
[364808061,1749246685443,-151.0,0.0002898,7]
[364808062,1749246685453,-151.0,0.0002898,7]
[364808063,1749246685463,-1108.515559,0.0002898,7]
[364808064,1749246685472,-1108.515559,0.0002898,7]
[364808065,1749246685482,-317.43770393,0.00028981,7]
[364808066,1749246685491,-248.60757735,0.00028981,7]
[364808067,1749246685502,-150.0,0.00028981,7]
[364808068,1749246685511,-150.0,0.00028981,7]
[364808069,1749246685522,-150.0,0.00028981,7]
[364808070,1749246685534,-150.0,0.00028981,7]
[364808071,1749246685544,-150.0,0.00028981,7]
[364808072,1749246685555,-150.0,0.00028984,2]
[364808073,1749246685564,-958.0,0.00028985,5]
[364808074,1749246685574,-689.0,0.00028985,5]
[364808075,1749246685584,-5619.03826,0.0002899,2]
[364808076,1749246685593,-14733.7279102,0.00028992,2]
[364808077,1749246685603,-2324.1101201,0.00028992,2]
[364808078,1749246685613,-138804.8960489,0.00028992,2]
[364808079,1749246685626,-770.1586122,0.00028992,2]
[364808080,1749246685635,-11680.0486125,0.00028992,2]
[364808081,1749246685645,-3557.1892349,0.00028992,2]
[364808082,1749246685654,-151.0,0.00028993,7]
[364808083,1749246685664,-151.0,0.00028993,7]
[364808084,1749246685674,-151.0,0.00028993,7]
[364808085,1749246685683,-151.0,0.00028993,7]
[364808086,1749246685693,-151.0,0.00028993,7]
[364808087,1749246685703,-151.0,0.00028993,7]
[364808088,1749246685713,-876.423704,0.00028993,7]
[364808089,1749246685722,-876.423704,0.00028993,7]
[364808090,1749246685732,-151.0,0.00028993,7]
[364808091,1749246685742,-151.0,0.00028993,7]
[364808092,1749246685751,-1626.175109,0.00028993,7]
[364808093,1749246685761,-1626.175109,0.00028993,7]
[364808094,1749246685770,-212.494882,0.00028993,7]
[364808095,1749246685779,-212.494882,0.00028993,7]
[364808096,1749246685788,-1973.737762,0.00028993,7]
[364808097,1749246685798,-1973.737762,0.00028993,7]
[364808098,1749246685807,-151.0,0.00028993,7]
[364808099,1749246685820,-151.0,0.00028993,7]
[364808100,1749246685830,-317.027385,0.00028993,7]
[364808101,1749246685839,-317.027385,0.00028993,7]
[364808102,1749246685848,-151.0,0.00028993,7]
[364808103,1749246685858,-151.0,0.00028993,7]
[364808104,1749246685867,-276.226863,0.00028993,7]
[364808105,1749246685877,-31929.15532361,0.00029,3]
[364808106,1749246685886,-189919.41846978,0.00029,2]
[364808107,1749246685895,-50579.84173778,0.00029,2]
[364808108,1749246685904,-302.48962414,0.00029,5]
[364808109,1749246685914,-46080.77487318,0.00029,2]
[364808110,1749246685926,-210.49716,0.00029,7]
[364808111,1749246685936,-210.49716,0.00029,7]
[364808112,1749246685947,-201.294307,0.00029,7]
[364808113,1749246685958,-201.294307,0.00029,7]
[364808114,1749246685968,-172.604956,0.00029,7]
[364808115,1749246685978,-172.604956,0.00029,7]
[364808116,1749246685989,-168.174064,0.00029,7]
[364808117,1749246686000,-168.174064,0.00029,7]
[364808118,1749246686012,-7248.22174713,0.00029,30]
[364808119,1749246686022,-151.0,0.00029,7]
[364808120,1749246686034,-151.0,0.00029,7]
[364808121,1749246686044,-151.0,0.00029,7]
[364808122,1749246686054,-272.866602,0.00029,7]
[364808123,1749246686064,-151.0,0.00029,7]
[364808124,1749246686074,-151.0,0.00029,7]
[364808125,1749246686084,-151.0,0.00029,7]
[364808126,1749246686095,-349.981987,0.00029,7]
[364808127,1749246686105,-349.981987,0.00029,7]
[364808128,1749246686116,-151.0,0.00029,7]
[364808129,1749246686126,-162.287359,0.00029,7]
[364808130,1749246686135,-162.287359,0.00029,7]
[364808131,1749246686144,-178.504092,0.00029,7]
[364808132,1749246686155,-151.254161,0.00029,7]
[364808133,1749246686165,-522.795634,0.00029,7]
[364808134,1749246686174,-522.795634,0.00029,7]
[364808135,1749246686183,-151.0,0.00029,7]
[364808136,1749246686194,-277.95566901,0.00029,2]
[364808137,1749246686204,-151.0,0.00029,7]
[364808138,1749246686213,-306.898886,0.00029,7]
[364808139,1749246686224,-306.898886,0.00029,7]
[364808140,1749246686235,-1418.899759,0.00029,7]
[364808141,1749246686244,-1418.899759,0.00029,7]
[364808142,1749246686255,-159.28,0.00029,2]
[364808143,1749246686264,-159.28,0.00029,2]
[364808144,1749246686274,-185.936294,0.00029,7]
[364808145,1749246686284,-185.936294,0.00029,7]
[364808146,1749246686293,-151.0,0.00029,7]
[364808147,1749246686302,-205.989101,0.00029,7]
[364808148,1749246686312,-205.989101,0.00029,7]
[364808149,1749246686321,-151.0,0.00029,7]
[364808150,1749246686331,-211.253752,0.00029,7]
[364808151,1749246686341,-211.253752,0.00029,7]
[364808152,1749246686350,-197.199252,0.00029,7]
[364808153,1749246686361,-197.199252,0.00029,7]
[364808154,1749246686372,-9266.161041,0.00029,7]
[364808155,1749246686384,-151.0,0.00029,7]
[364808156,1749246686395,-9266.161041,0.00029,7]
[364808157,1749246686406,-965.73903659,0.00029,2]
[364808158,1749246686417,-151.0,0.00029,7]
[364808159,1749246686427,-151.0,0.00029,7]
[364808160,1749246686437,-151.0,0.00029,7]
[364808161,1749246686448,-151.0,0.00029,7]
[364808162,1749246686459,-150.0,0.00029001,7]
[364808163,1749246686470,-958.0,0.00029012,5]
[364808164,1749246686480,-689.0,0.00029013,5]
[364808165,1749246686490,-317.43770393,0.00029013,7]
[364808166,1749246686500,-248.60757735,0.00029013,7]
[364808167,1749246686509,-150.0,0.0002902,7]
[364808168,1749246686520,-150.0,0.00029025,7]
[364808169,1749246686530,-150.0,0.00029025,7]
[364808170,1749246686541,-150.0,0.00029025,7]
[364808171,1749246686551,-151.0,0.0002903,7]
[364808172,1749246686561,-151.0,0.0002903,7]
[364808173,1749246686571,-208.13026186,0.00029031,2]
[364808174,1749246686582,-150.0,0.00029039,7]
[364808175,1749246686592,-958.0,0.0002904,5]
[364808176,1749246686601,-689.0,0.0002904,5]
[364808177,1749246686611,-1302.85,0.0002904,5]
[364808178,1749246686624,-1394.62,0.0002904,5]
[364808179,1749246686634,-1628.97,0.0002904,5]
[364808180,1749246686646,-151.0,0.00029041,7]
[364808181,1749246686656,-151.0,0.00029041,7]
[364808182,1749246686667,-151.0,0.00029041,7]
[364808183,1749246686677,-152.03274,0.00029041,7]
[364808184,1749246686690,-152.03274,0.00029041,7]
[364808185,1749246686700,-363.448933,0.00029041,7]
[364808186,1749246686710,-363.448933,0.00029041,7]
[364808187,1749246686720,-151.0,0.00029041,7]
[364808188,1749246686729,-151.0,0.00029041,7]
[364808189,1749246686740,-282.328444,0.00029041,7]
[364808190,1749246686750,-282.328444,0.00029041,7]
[364808191,1749246686761,-151.0,0.00029041,7]
[364808192,1749246686771,-151.0,0.00029041,2]
[364808193,1749246686989,-151.0,0.00029041,2]
[364808194,1749246686998,-151.0,0.00029041,2]
[364808195,1749246687008,-151.0,0.00029041,2]
[364808196,1749246687017,-151.0,0.00029041,2]
[364808197,1749246687026,-151.0,0.00029041,2]
[364808198,1749246687034,-151.0,0.00029041,2]
[364808199,1749246687043,-151.0,0.00029041,2]
[364808200,1749246687052,-151.0,0.00029041,2]
[364808201,1749246687061,-151.0,0.00029041,2]
[364808202,1749246687070,-151.0,0.00029041,2]
[364808203,1749246687079,-157.030655,0.00029041,2]
[364808204,1749246687088,-151.0,0.00029041,7]
[364808205,1749246687097,-600.0,0.00029041,30]
[364808206,1749246687106,-151.0,0.00029041,7]
[364808207,1749246687115,-885.44,0.00029041,5]
[364808208,1749246687124,-151.0,0.00029041,7]
[364808209,1749246687134,-155.687052,0.00029041,7]
[364808210,1749246687142,-1108.515559,0.00029041,7]
[364808211,1749246687152,-155.687052,0.00029041,7]
[364808212,1749246687161,-1108.515559,0.00029041,7]
[364808213,1749246687170,-480.0,0.00029041,5]
[364808214,1749246687179,-151.0,0.00029041,7]
[364808215,1749246687188,-151.0,0.00029041,7]
[364808216,1749246687197,-151.0,0.00029041,7]
[364808217,1749246687206,-621.89,0.00029041,5]
[364808218,1749246687216,-493.2,0.00029041,5]
[364808219,1749246687226,-480.0,0.00029041,5]
[364808220,1749246687235,-480.0,0.00029041,5]
[364808221,1749246687246,-440.744987,0.00029041,7]
[364808222,1749246687255,-440.744987,0.00029041,7]
[364808223,1749246687266,-480.0,0.00029041,5]
[364808224,1749246687275,-384.859603,0.00029041,7]
[364808225,1749246687284,-384.859603,0.00029041,7]
[364808226,1749246687293,-512.478821,0.00029041,7]
[364808227,1749246687302,-480.0,0.00029041,5]
[364808228,1749246687311,-480.0,0.00029041,5]
[364808229,1749246687321,-151.0,0.00029041,7]
[364808230,1749246687330,-480.0,0.00029041,5]
[364808231,1749246687338,-151.0,0.00029041,7]
[364808232,1749246687347,-480.0,0.00029041,5]
[364808233,1749246687357,-178.005479,0.00029041,7]
[364808234,1749246687366,-898.975534,0.00029041,7]
[364808235,1749246687375,-898.975534,0.00029041,7]
[364808236,1749246687386,-480.0,0.00029041,5]
[364808237,1749246687396,-480.0,0.00029041,5]
[364808238,1749246687406,-1372.88,0.00029041,5]
[364808239,1749246687416,-964.82,0.00029041,5]
[364808240,1749246687425,-480.0,0.00029041,5]
[364808241,1749246687435,-748.95,0.00029041,5]
[364808242,1749246687446,-480.0,0.00029041,5]
[364808243,1749246687456,-480.0,0.00029041,5]
[364808244,1749246687466,-498.72,0.00029041,5]
[364808245,1749246687476,-480.0,0.00029041,5]
[364808246,1749246687486,-480.0,0.00029041,5]
[364808247,1749246687496,-944.11,0.00029041,5]
[364808248,1749246687505,-521.05,0.00029041,5]
[364808249,1749246687515,-1064.79,0.00029041,5]
[364808250,1749246687525,-480.0,0.00029041,5]
[364808251,1749246687535,-1499.94,0.00029041,5]
[364808252,1749246687544,-742.55,0.00029041,5]
[364808253,1749246687554,-609.61,0.00029041,5]
[364808254,1749246687564,-1158.5,0.00029041,5]
[364808255,1749246687574,-480.0,0.00029041,5]
[364808256,1749246687583,-480.0,0.00029041,5]
[364808257,1749246687592,-480.0,0.00029041,5]
[364808258,1749246687602,-480.0,0.00029041,5]
[364808259,1749246687611,-584.43,0.00029041,5]
[364808260,1749246687624,-675.4,0.00029041,5]
[364808261,1749246687634,-840.68,0.00029041,5]
[364808262,1749246687643,-499.6,0.00029041,5]
[364808263,1749246687653,-654.36,0.00029041,5]
[364808264,1749246687663,-881.61,0.00029041,5]
[364808265,1749246687672,-866.2,0.00029041,5]
[364808266,1749246687682,-480.0,0.00029041,5]
[364808267,1749246687692,-480.0,0.00029041,5]
[364808268,1749246687703,-480.0,0.00029041,5]
[364808269,1749246687713,-484.77,0.00029041,5]
[364808270,1749246687722,-555.59,0.00029041,5]
[364808271,1749246687732,-249.69700801,0.00029041,5]
[364808272,1749246687741,-480.0,0.00029041,5]
[364808273,1749246687751,-988.23,0.00029041,5]
[364808274,1749246687761,-640.37,0.00029041,5]
[364808275,1749246687770,-693.56,0.00029041,5]
[364808276,1749246687780,-742.17,0.00029041,5]
[364808277,1749246687789,-1107.36,0.00029041,5]
[364808278,1749246687798,-480.0,0.00029041,5]
[364808279,1749246687807,-480.0,0.00029041,5]
[364808280,1749246687816,-480.0,0.00029041,5]
[364808281,1749246687827,-480.0,0.00029041,5]
[364808282,1749246687836,-1024.72,0.00029041,5]
[364808283,1749246687846,-807.19,0.00029041,5]
[364808284,1749246687856,-532.18,0.00029041,5]
[364808285,1749246687866,-480.0,0.00029041,5]
[364808286,1749246687875,-480.0,0.00029041,5]
[364808287,1749246687886,-480.0,0.00029041,5]
[364808288,1749246687895,-791.89,0.00029041,5]
[364808289,1749246687905,-720.13,0.00029041,5]
[364808290,1749246687915,-480.0,0.00029041,5]
[364808291,1749246687924,-1109.46,0.00029041,5]
[364808292,1749246687934,-480.0,0.00029041,5]
[364808293,1749246687943,-486.82,0.00029041,5]
[364808294,1749246687952,-480.0,0.00029041,5]
[364808295,1749246687962,-491.55,0.00029041,5]
[364808296,1749246687972,-480.0,0.00029041,5]
[364808297,1749246687982,-1682.48,0.00029041,5]
[364808298,1749246687991,-875.07,0.00029041,5]
[364808299,1749246688000,-485.33,0.00029041,5]
[364808300,1749246688009,-151.0,0.00029041,7]
[364808301,1749246688019,-858.22,0.00029041,5]
[364808302,1749246688029,-787.71,0.00029041,5]
[364808303,1749246688038,-1346.81,0.00029041,5]
[364808304,1749246688048,-830.11,0.00029041,5]
[364808305,1749246688057,-480.0,0.00029041,5]
[364808306,1749246688067,-951.1,0.00029041,5]
[364808307,1749246688077,-665.78,0.00029041,5]
[364808308,1749246688087,-864.11,0.00029041,5]
[364808309,1749246688096,-898.25,0.00029041,5]
[364808310,1749246688106,-1665.9,0.00029041,5]
[364808311,1749246688116,-480.0,0.00029041,5]
[364808312,1749246688125,-151.0,0.00029041,7]
[364808313,1749246688135,-922.04,0.00029041,5]
[364808314,1749246688144,-151.0,0.00029041,7]
[364808315,1749246688153,-480.0,0.00029041,5]
[364808316,1749246688163,-507.1,0.00029041,5]
[364808317,1749246688173,-503.58,0.00029041,5]
[364808318,1749246688183,-480.0,0.00029041,5]
[364808319,1749246688192,-480.0,0.00029041,5]
[364808320,1749246688202,-151.0,0.00029041,7]
[364808321,1749246688211,-480.0,0.00029041,5]
[364808322,1749246688221,-857.71,0.00029041,5]
[364808323,1749246688230,-881.94,0.00029041,5]
[364808324,1749246688239,-480.0,0.00029041,5]
[364808325,1749246688249,-151.0,0.00029041,7]
[364808326,1749246688259,-480.0,0.00029041,5]
[364808327,1749246688268,-3871.62,0.00029041,5]
[364808328,1749246688278,-1276.99,0.00029041,5]
[364808329,1749246688287,-151.0,0.00029041,7]
[364808330,1749246688296,-700.22,0.00029041,5]
[364808331,1749246688306,-961.98,0.00029041,5]
[364808332,1749246688315,-180.094485,0.00029041,7]
[364808333,1749246688325,-480.0,0.00029041,5]
[364808334,1749246688335,-800.25,0.00029041,5]
[364808335,1749246688345,-2314.74,0.00029041,5]
[364808336,1749246688354,-480.0,0.00029041,5]
[364808337,1749246688364,-151.0,0.00029041,7]
[364808338,1749246688374,-2288.89,0.00029041,5]
[364808339,1749246688383,-6306.05,0.00029041,5]
[364808340,1749246688393,-151.0,0.00029041,7]
[364808341,1749246688403,-991.79,0.00029041,5]
[364808342,1749246688412,-362.506305,0.00029041,7]
[364808343,1749246688423,-3309.41,0.00029041,5]
[364808344,1749246688432,-6270.48,0.00029041,5]
[364808345,1749246688442,-658.77,0.00029041,5]
[364808346,1749246688451,-362.506305,0.00029041,7]
[364808347,1749246688461,-1547.23,0.00029041,5]
[364808348,1749246688470,-480.0,0.00029041,5]
[364808349,1749246688480,-656.6,0.00029041,5]
[364808350,1749246688489,-678.5,0.00029041,5]
[364808351,1749246688499,-697.1,0.00029041,5]
[364808352,1749246688509,-3290.58,0.00029041,5]
[364808353,1749246688520,-480.0,0.00029041,5]
[364808354,1749246688530,-480.0,0.00029041,5]
[364808355,1749246688540,-480.0,0.00029041,5]
[364808356,1749246688550,-41825.2,0.00029041,5]
[364808357,1749246688560,-4175.73,0.00029041,5]
[364808358,1749246688571,-757.81,0.00029041,5]
[364808359,1749246688580,-827.83,0.00029041,5]
[364808360,1749246688591,-480.0,0.00029041,5]
[364808361,1749246688600,-2642.31,0.00029041,5]
[364808362,1749246688609,-480.0,0.00029041,5]
[364808363,1749246688623,-494.1,0.00029041,5]
[364808364,1749246688633,-1402.22,0.00029041,5]
[364808365,1749246688642,-593.19,0.00029041,5]
[364808366,1749246688652,-915.82,0.00029041,5]
[364808367,1749246688663,-480.0,0.00029041,5]
[364808368,1749246688672,-548.04,0.00029041,5]
[364808369,1749246688682,-7246.33,0.00029041,5]
[364808370,1749246688693,-1038.48,0.00029041,5]
[364808371,1749246688703,-386.66876,0.00029041,7]
[364808372,1749246688712,-1012.51,0.00029041,5]
[364808373,1749246688722,-1063.91,0.00029041,5]
[364808374,1749246688732,-480.0,0.00029041,5]
[364808375,1749246688741,-1000.0,0.00029041,2]
[364808376,1749246688751,-386.66876,0.00029041,7]
[364808377,1749246688761,-151.0,0.00029041,7]
[364808378,1749246688770,-2287.44,0.00029041,5]
[364808379,1749246688779,-1253.57,0.00029041,5]
[364808380,1749246688788,-543.96,0.00029041,5]
[364808381,1749246688798,-193.357012,0.00029041,7]
[364808382,1749246688807,-888.06,0.00029041,5]
[364808383,1749246688816,-706.17,0.00029041,5]
[364808384,1749246688826,-193.357012,0.00029041,7]
[364808385,1749246688835,-1329.463067,0.00029041,7]
[364808386,1749246688844,-151.0,0.00029041,7]
[364808387,1749246688854,-2321.6,0.00029041,5]
[364808388,1749246688863,-151.0,0.00029041,7]
[364808389,1749246688872,-1717.97,0.00029041,5]
[364808390,1749246688881,-1329.463067,0.00029041,7]
[364808391,1749246688891,-9864.62,0.00029041,5]
[364808392,1749246688900,-480.0,0.00029041,5]
[364808393,1749246688909,-151.0,0.00029041,7]
[364808394,1749246688918,-1064.72,0.00029041,5]
[364808395,1749246688927,-1463.3,0.00029041,5]
[364808396,1749246688936,-2703.77,0.00029041,5]
[364808397,1749246688945,-1379.5,0.00029041,5]
[364808398,1749246688955,-480.0,0.00029041,5]
[364808399,1749246688965,-1053.29,0.00029041,5]
[364808400,1749246688974,-724.32,0.00029041,5]
[364808401,1749246688983,-2062.4,0.00029041,5]
[364808402,1749246688993,-1152.25,0.00029041,5]
[364808403,1749246689002,-511.1,0.00029041,5]
[364808404,1749246689012,-2113.21,0.00029041,5]
[364808405,1749246689021,-950.72,0.00029041,5]
[364808406,1749246689030,-1038.72,0.00029041,5]
[364808407,1749246689040,-545.76,0.00029041,5]
[364808408,1749246689050,-2532.67,0.00029041,5]
[364808409,1749246689060,-682.89,0.00029041,5]
[364808410,1749246689080,-3584.03,0.00029041,5]
[364808411,1749246689093,-480.0,0.00029041,5]
[364808412,1749246689102,-528.47,0.00029041,5]
[364808413,1749246689112,-548.2,0.00029041,5]
[364808414,1749246689121,-720.56,0.00029041,5]
[364808415,1749246689130,-961.24,0.00029041,5]
[364808416,1749246689143,-480.0,0.00029041,5]
[364808417,1749246689152,-948.47,0.00029041,5]
[364808418,1749246689161,-618.38,0.00029041,5]
[364808419,1749246689171,-480.0,0.00029041,5]
[364808420,1749246689180,-1184.48,0.00029041,5]
[364808421,1749246689192,-480.0,0.00029041,5]
[364808422,1749246689202,-729.47,0.00029041,5]
[364808423,1749246689212,-2291.9,0.00029041,5]
[364808424,1749246689222,-480.0,0.00029041,5]
[364808425,1749246689231,-480.0,0.00029041,5]
[364808426,1749246689241,-558.53,0.00029041,5]
[364808427,1749246689250,-480.0,0.00029041,5]
[364808428,1749246689260,-1173.51,0.00029041,5]
[364808429,1749246689269,-1217.86,0.00029041,5]
[364808430,1749246689279,-480.0,0.00029041,5]
[364808431,1749246689289,-661.15,0.00029041,5]
[364808432,1749246689298,-2825.65,0.00029041,5]
[364808433,1749246689308,-782.79,0.00029041,5]
[364808434,1749246689317,-480.0,0.00029041,5]
[364808435,1749246689327,-866.52,0.00029041,5]
[364808436,1749246689338,-978.55,0.00029041,5]
[364808437,1749246689348,-480.0,0.00029041,5]
[364808438,1749246689358,-480.0,0.00029041,5]
[364808439,1749246689368,-480.0,0.00029041,5]
[364808440,1749246689377,-3108.49,0.00029041,5]
[364808441,1749246689387,-480.0,0.00029041,5]
[364808442,1749246689396,-1300.77,0.00029041,5]
[364808443,1749246689406,-480.0,0.00029041,5]
[364808444,1749246689415,-2680.22,0.00029041,5]
[364808445,1749246689424,-1437.98,0.00029041,5]
[364808446,1749246689433,-519.51,0.00029041,5]
[364808447,1749246689443,-509.64,0.00029041,5]
[364808448,1749246689452,-480.0,0.00029041,5]
[364808449,1749246689462,-9520.94,0.00029041,5]
[364808450,1749246689471,-480.0,0.00029041,5]
[364808451,1749246689480,-480.0,0.00029041,5]
[364808452,1749246689489,-480.0,0.00029041,5]
[364808453,1749246689499,-1288.3,0.00029041,5]
[364808454,1749246689508,-1532.11,0.00029041,5]
[364808455,1749246689517,-539.78,0.00029041,5]
[364808456,1749246689526,-1411.14,0.00029041,5]